{"text_format":"1","workbook":"xlsx","n_sheets":2,"sheets":["Лист1","Лист2"],"not_rendered":{"charts":0,"images":0,"macros":1,"external_links":0,"defined_names":0,"comments":0,"pivot_tables":0},"unopened":[],"bounds":{"document_bytes":16777216,"sheet_cells":100000,"rows_first":2000,"rows_last":500,"rows_between":2000,"halvings":0,"cell_chars":16384,"cell_head_chars":4096},"cells_cut":0,"cells_raw":0,"read":"whole","date_system":"1900"}

{"sheet":"Лист1","index":0,"n_rows":25,"n_cols":16,"rows_kept":25,"cut":false,"hidden":false,"merged":[[0,2,0,10],[0,1,2,1],[0,0,2,0],[18,0,18,1]]}
["№","Наименование оценочной позиции","Объекты Моспромстрой"]
[null,null,"Общественно-жилой комплекс ул.Гродненская, вл.5а","Мельникова ул., вл.3. Общественно – жилой комплекс (секции 15-18, ДОУ, подземная автостоянка под секциями 7-18)","Строительство многоквартирных жилых домов №2315 (корпуса А,Б) по адресу ул.Радио, вл.11, г.Зеленоград, район Крюково","Здание научно-технического центра ПАО «ТМК» на территории инновационного центра «Сколково»","Жилые дома, корп. 1-6, ул. Автозаводская, вл. 23","Станционный комплекс «Стахановская улица», Кожуховская линия ст. «Авиамоторная» - ст. «Некрасовка»","Электродепо «Нижегородское» (реконструкция), шоссе Энтузиастов, д. 4","Реконструкция с расширением электродепо «Владыкино», Березовая аллея, д. 8  ","Электродепо «Лихоборы», ул. Верхнелихоборская, вл. 5 "]
[null,null,1,2,3,4,5,6,7,8,9]
[1,"Планирование (среднесрочное/долгосрочное)",1,1,1,1,0,0,0,0,0,null,null,null,null,0]
[2,"График производства работ",1,1,1,1,0,0,0,0,0,null,null,null,null,1]
[3,"Снабжение объекта, поставки, логистика",2,2,2,2,0,0,0,0,0,null,null,null,null,2]
[4,"Процедура выбора контрагентов, тендеры",1,1,1,1,0,0,0,0,0,null,null,null,null,3]
[5,"Выполнение (физобъемы)",0,0,0,0,0,0,0,0,0]
[6,"Выполнение (деньги)",0,0,0,0,0,0,0,0,0]
[7,"Документооборот и отчетность",1,1,1,1,0,0,0,0,0]
[8,"Ведение документов на объекте",1,2,2,3]
[9,"Персонал ",2,3,1,1,0,0,0,0,0]
[10,"Техника",2,2,1,2,0,0,0,0,0]
[11,"Контроль задолженности",1,1,1,1,0,0,0,0,0]
[12,"Работа с замечаниями от Заказчика и контролирующих органов",1,1,1,3,0,0,0,0,0]
[13,"Планирование рисков",1,1,1,1,0,0,0,0,0]
[14,"Претензионная работа",1,2,1,2,0,0,0,0,0]
[15,"Статус предоставления подтверждающих документов со стороны МПС в адрес EY",1,2,2,3,0,0,0,0,0]
["ИТОГО БАЛЛОВ",null,{"$f":"SUM(C4:C18)","v":16},{"$f":"SUM(D4:D18)","v":20},16,22,0,{"$f":"SUM(H4:H18)","v":0},{"$f":"SUM(I4:I18)","v":0},{"$f":"SUM(J4:J18)","v":0},0]
[]
[null,"Оценочная степень"]
[0,"данные отсутствуют"]
[1,"неудовлетворительно"]
[2,"удовлетворительно"]
[3,"хорошо"]

{"sheet":"Лист2","index":1,"n_rows":56,"n_cols":24,"rows_kept":56,"cut":false,"hidden":false,"merged":[[2,21,3,21],[1,17,1,18],[1,19,1,20],[0,3,0,20],[0,0,2,0],[0,1,2,1],[0,2,2,2],[1,3,1,4],[1,5,1,6],[1,7,1,8],[1,9,1,10],[1,11,1,12],[1,13,1,14],[1,15,1,16]]}
["№","Наименование оценочного критерия","Вес критерия (по разделу max 100)","Объекты Моспромстрой"]
[null,null,null,"Общественно-жилой комплекс ул.Гродненская, вл.5а",null,"Мельникова ул., вл.3. Общественно – жилой комплекс (секции 15-18, ДОУ, подземная автостоянка под секциями 7-18)",null,"Строительство многоквартирных жилых домов №2315 (корпуса А,Б) по адресу ул.Радио, вл.11, г.Зеленоград, район Крюково",null,"Здание научно-технического центра ПАО «ТМК» на территории инновационного центра «Сколково»",null,"Жилые дома, корп. 1-6, ул. Автозаводская, вл. 23",null,"Станционный комплекс «Стахановская улица», Кожуховская линия ст. «Авиамоторная» - ст. «Некрасовка»",null,"Электродепо «Нижегородское» (реконструкция), шоссе Энтузиастов, д. 4",null,"Реконструкция с расширением электродепо «Владыкино», Березовая аллея, д. 8  ",null,"Электродепо «Лихоборы», ул. Верхнелихоборская, вл. 5 "]
[null,null,null,"Статус наличия","Сводный итог","Статус наличия","Сводный итог","Статус наличия","Сводный итог","Статус наличия","Сводный итог","Статус наличия","Сводный итог","Статус наличия","Сводный итог","Статус наличия","Сводный итог","Статус наличия","Сводный итог","Статус наличия","Сводный итог","ИТОГ"]
[1,"Планирование ",{"$f":"SUM(C5:C12)","v":100},4.8,0.57499999999999996,3.5,0.38,3.8,0.41000000000000003,3.8,0.41000000000000003,0,0,{"$f":"SUM(N5:N12)","v":0},0,0,0,0,0,0,0]
["1.1","Стратегическое планирование программы и потенциала предприятия по объектам и структуре объектов, сроком от 1 года до 3 лет",10,0.3,{"$f":"($C5*D5)/100","v":0.03},0.3,{"$f":"($C5*F5)/100","v":0.03},0.6,{"$f":"($C5*H5)/100","v":0.06},0.6,{"$f":"($C5*J5)/100","v":0.06},0,{"$f":"($C5*L5)/100","v":0},0,{"$f":"($C5*N5)/100","v":0},0,{"$f":"($C5*P5)/100","v":0},0,{"$f":"($C5*R5)/100","v":0},0,{"$f":"($C5*T5)/100","v":0},"В итоге должна быть надпись \"СИСТЕМНОЕ ЯВЛЕНИЕ\" если количество ячеек с повторяющимися значениями больше чем на 5ти объектах (т.е. больше 5 ячеет должно высвечиваться здесь СИСТЕМНОЕ ЯВЛЕНИЕ и так по каждой строчке",{"$f":"MaxDupCount(K5:U5)","v":5},{"$f":"IF(MaxDupCount(K5:U5)>5,\"Системное явление\",\"\")","v":""}]
["1.2","План производства строительно-монтажных или специализированных работ на весь объем по контракту",15,0.6,0.09,0.3,4.4999999999999998E-2,0.3,4.4999999999999998E-2,0.3,4.4999999999999998E-2,0,0,0,{"$f":"($C6*N6)/100","v":0},0,{"$f":"($C6*P6)/100","v":0},0,{"$f":"($C6*R6)/100","v":0},0,0,null,{"$f":"MaxDupCount(K6:U6)","v":5},{"$f":"IF(MaxDupCount(K6:U6)>5,\"Системное явление\",\"\")","v":""}]
["1.3","План материально-технического обеспечения на весь объем работ",15,1,0.15,0,0,0,0,0,0,0,0,0,{"$f":"($C7*N7)/100","v":0},0,{"$f":"($C7*P7)/100","v":0},0,{"$f":"($C7*R7)/100","v":0},0,0,null,6,"Системное явление"]
["1.4","План обеспечения рабочей силой на весь объем работ",15,0,0,0,0,0,0,0,0,0,0,0,{"$f":"($C8*N8)/100","v":0},0,{"$f":"($C8*P8)/100","v":0},0,{"$f":"($C8*R8)/100","v":0},0,0,null,6,"Системное явление"]
["1.5","Производственное планирование на стадии строительства объекта (жизненный цикл объекта) до 1 месяца",15,0.3,4.4999999999999998E-2,0.3,4.4999999999999998E-2,0.3,4.4999999999999998E-2,0.3,4.4999999999999998E-2,0,0,0,{"$f":"($C9*N9)/100","v":0},0,{"$f":"($C9*P9)/100","v":0},0,{"$f":"($C9*R9)/100","v":0},0,0,null,5,""]
["1.6","Недельно-суточное планирование в ходе строительства объекта",10,0.6,0.06,0.6,0.06,0.6,0.06,0.6,0.06,0,0,0,{"$f":"($C10*N10)/100","v":0},0,{"$f":"($C10*P10)/100","v":0},0,{"$f":"($C10*R10)/100","v":0},0,0,null,5,""]
["1.7","План освоение финансовых средств на 1 месяц",10,1,0.1,1,0.1,1,0.1,1,0.1,0,0,0,{"$f":"($C11*N11)/100","v":0},0,{"$f":"($C11*P11)/100","v":0},0,{"$f":"($C11*R11)/100","v":0},0,0,null,5,""]
["1.8","Планирование рисков",10,1,0.1,1,0.1,1,0.1,1,0.1,0,0,0,{"$f":"($C12*N12)/100","v":0},0,{"$f":"($C12*P12)/100","v":0},0,{"$f":"($C12*R12)/100","v":0},0,0,null,5,""]
[]
[null,"Примечание",null,null,null,null,null,null,{"$f":"BkClr(I12)","v":{"$error":"#NAME?"}},{"$f":"BkClr(J12)","v":{"$error":"#NAME?"}}]
[0,"данные отсутствуют",null,null,null,null,null,null,{"$f":"BkClr(I13)","v":{"$error":"#NAME?"}}]
[0.3,"неудовлетворительное состояние",null,null,null,null,null,null,{"$f":"BkClr(I14)","v":{"$error":"#NAME?"}}]
[0.6,"удовлетворительное состояние",null,null,null,null,null,null,{"$f":"BkClr(I15)","v":{"$error":"#NAME?"}}]
[1,"хорошее состояние"]
[]
[]
[]
[]
[]
[]
[]
[]
[]
[]
[]
[]
[]
[]
[]
[]
[]
[]
[]
[]
[]
[]
[]
[]
[]
[]
[]
[]
[]
[]
[]
[]
[]
[]
[null,null,null,null,null,0]
[null,null,null,null,null,0.3]
[null,null,null,null,null,0.6]
[null,null,null,null,null,1]